bitfinex-derivatives/quotes_ETHF0:USTF0_20241020
["timestamp","ask_amount","ask_price","bid_price","bid_amount"]
[1729401403420,3.2078,2646.8,2646.6,1.2067]
[1729401403814,3.58564,2646.8,2646.6,1.2067]
[1729401405720,0.37784,2646.8,2646.6,1.2067]
[1729401405920,3.58564,2646.8,2646.6,1.2067]
[1729401406621,3.58564,2646.8,2646.6,1.58455]
[1729401407631,3.2078,2646.8,2646.7,0.37784]
[1729401407837,3.2078,2646.8,2646.6,1.2067]
[1729401408130,3.58563,2646.8,2646.6,1.58455]
[1729401408525,3.2078,2646.8,2646.6,1.2067]
[1729401408827,3.2078,2646.8,2646.7,0.37784]
[1729401409036,1.5967,2647.0,2646.8,0.37783]
[1729401409227,1.5967,2647.0,2646.9,0.4032]
[1729401409626,3.2078,2647.1,2646.9,0.78101]
[1729401409836,3.2078,2647.1,2647.0,0.8243]
[1729401410137,3.58559,2647.1,2647.0,0.8243]
[1729401413127,0.37779,2647.1,2647.0,0.8243]
[1729401413323,3.58559,2647.1,2647.0,0.8243]
[1729401414034,0.37779,2647.1,2647.0,0.8243]
[1729401414240,3.58559,2647.1,2647.0,0.8243]
[1729401416136,0.37782,2646.9,2646.6,0.37785]
[1729401416339,0.4009,2646.8,2646.7,0.37784]
[1729401416931,1.1854,2647.0,2646.7,0.37784]
[1729401417130,0.3778,2647.0,2646.8,0.37782]
[1729401417332,3.2078,2647.1,2646.9,0.8168]
[1729401417641,3.2078,2647.1,2646.9,1.2403]
[1729401417642,3.5856,2647.1,2646.9,1.2403]
[1729401418226,3.2078,2647.1,2646.9,1.2403]
[1729401418433,3.58559,2647.1,2646.9,1.2403]
[1729401421133,3.58559,2647.1,2646.9,1.61811]
[1729401421840,3.58559,2647.1,2646.9,1.2403]
[1729401422430,3.2078,2647.1,2646.9,1.2403]
[1729401422632,3.5856,2647.1,2646.9,1.2403]
[1729401423237,0.3778,2647.1,2646.9,1.2403]
[1729401423639,0.3778,2647.1,2646.9,1.61811]
[1729401423840,3.2078,2647.3,2646.9,1.2403]
[1729401424046,0.37779,2647.1,2646.9,1.2403]
[1729401425244,0.3778,2647.1,2646.9,1.2403]
[1729401426742,3.2078,2647.3,2646.9,1.2403]
[1729401426942,0.3778,2647.1,2646.9,1.2403]
[1729401430348,0.3778,2647.0,2646.9,1.2403]
[1729401430645,1.6013,2647.0,2646.9,0.4235]
[1729401434048,0.37782,2646.9,2646.7,3.58564]
[1729401434245,0.37782,2646.9,2646.7,3.99914]
[1729401436155,1.2235,2647.0,2646.7,3.99914]
[1729401436455,1.60131,2647.0,2646.7,0.79134]
[1729401436642,1.60131,2647.0,2646.7,3.99914]
[1729401436955,1.60131,2647.0,2646.8,0.37783]
[1729401437354,1.60131,2647.0,2646.7,3.6213]
[1729401437557,1.60131,2647.0,2646.8,0.37783]
[1729401437755,1.60131,2647.0,2646.7,3.6213]
[1729401438054,1.60131,2647.0,2646.7,3.99913]
[1729401438443,1.60131,2647.0,2646.8,0.37783]
[1729401438642,1.60131,2647.0,2646.7,3.6213]
[1729401438643,1.60131,2647.0,2646.7,3.99914]
[1729401439443,1.60131,2647.0,2646.7,3.6213]
[1729401439853,1.60131,2647.0,2646.7,3.99913]
[1729401440350,1.60131,2647.0,2646.8,0.37783]
[1729401440351,1.2235,2647.0,2646.8,0.37783]
[1729401442858,1.60131,2647.0,2646.7,3.99914]
[1729401443951,1.2235,2647.0,2646.7,3.6213]
[1729401444151,0.37782,2646.9,2646.7,3.99914]
[1729401444559,1.60131,2647.0,2646.7,3.99914]
[1729401445464,1.2235,2647.0,2646.7,3.6213]
[1729401445760,1.60131,2647.0,2646.7,3.99914]
[1729401448565,1.60131,2647.0,2646.7,0.79134]
[1729401448758,1.2235,2647.0,2646.7,3.99914]
[1729401449160,1.60131,2647.0,2646.7,3.99914]
[1729401449456,1.60131,2647.0,2646.7,4.9904764]
[1729401450067,1.60131,2647.0,2646.7,1.7826764]
[1729401450362,1.60131,2647.0,2646.7,4.9904764]
[1729401452561,1.60131,2647.0,2646.8,0.37783]
[1729401452757,1.2235,2647.0,2646.8,0.37783]
[1729401453554,1.2235,2647.0,2646.8,1.3691664]
[1729401455474,1.60131,2647.0,2646.8,0.9913364]
[1729401455860,1.2235,2647.0,2646.8,1.3691664]
[1729401456669,1.2235,2647.0,2646.8,0.37783]
[1729401463682,1.2235,2647.0,2646.9,0.9913364]
[1729401464567,1.2235,2647.0,2646.8,1.3691664]
[1729401465180,1.2235,2647.0,2646.9,0.9913364]
[1729401465378,1.2235,2647.0,2646.9,1.3691464]
[1729401465778,1.2235,2647.0,2646.9,0.37781]
[1729401466181,1.2235,2647.0,2646.9,1.3691464]
[1729401466971,1.2235,2647.0,2646.9,0.37781]
[1729401467173,1.2235,2647.0,2646.9,1.3691464]
[1729401468069,1.2235,2647.0,2646.9,0.37781]
[1729401468270,1.2235,2647.0,2646.9,1.3691464]
[1729401470677,1.2235,2647.0,2646.9,2.70890716]
[1729401470881,1.2235,2647.0,2646.9,3.20238437]
[1729401471089,0.37778,2647.2,2646.9,1.71757076]
[1729401471287,1.61605,2647.4,2647.0,1.36991336]
[1729401471587,1.2383,2647.4,2647.1,0.99212336]
[1729401471885,1.2383,2647.4,2647.2,0.37776]
[1729401472291,1.2383,2647.4,2647.3,0.4261]
[1729401472987,1.2383,2647.4,2647.3,0.80386]
[1729401473391,3.84254487,2647.7,2647.3,0.80386]
[1729401473584,5.04774487,2647.7,2647.4,1.20434]
[1729401474186,1.5829,2647.7,2647.4,0.8266]
[1729401474385,1.5829,2647.7,2647.4,1.20434]
[1729401474985,1.5829,2647.7,2647.4,0.8266]
[1729401475493,0.37772,2647.6,2647.4,0.8266]
[1729401475688,1.2052,2647.7,2646.9,0.99212336]
[1729401475689,0.37776,2647.3,2646.9,0.99212336]
[1729401475893,4.14984963,2648.0,2646.8,0.4066]
[1729401475894,1.2317,2647.2,2646.8,0.4066]
[1729401476194,1.2317,2647.2,2646.8,0.78443]
[1729401476395,1.2317,2647.2,2646.8,0.4066]
[1729401476592,1.2317,2647.2,2647.0,3.2078]
[1729401476983,3.46483487,2647.6,2647.0,3.2078]
[1729401477291,1.2624,2647.6,2647.2,0.37777]
[1729401477793,1.2624,2647.6,2647.3,0.4221]
[1729401478987,3.5855,2647.7,2647.3,0.4221]
[1729401478988,0.3777,2647.7,2647.3,0.4221]
[1729401479187,3.2078,2648.3,2647.6,3.2078]
[1729401479388,0.37767,2648.0,2647.7,0.4221]
[1729401479586,0.8209,2648.1,2647.7,0.4221]
[1729401479796,0.80397,2647.9,2647.7,0.4221]
[1729401480500,0.4263,2647.9,2647.7,0.4221]
[1729401481793,0.80397,2647.9,2647.7,0.4221]
[1729401482397,0.4263,2647.9,2647.7,0.4221]
[1729401482600,0.80397,2647.9,2647.7,0.4221]
[1729401482903,0.3777,2647.7,2647.3,0.99212336]
[1729401483101,0.3777,2647.7,2647.4,0.3994]
[1729401483102,1.2341,2647.6,2647.4,0.3994]
[1729401483692,1.61183,2647.6,2647.4,0.3994]
[1729401484999,1.2341,2647.6,2647.1,4.98702336]
[1729401485195,1.61182,2647.6,2647.2,0.4176]
[1729401485409,0.37773,2647.5,2647.2,0.4176]
[1729401487205,0.37774,2647.4,2647.2,0.4176]
[1729401487396,1.2341,2647.6,2647.2,0.4176]
[1729401487599,0.37775,2647.4,2647.2,0.4176]
[1729401489204,0.37775,2647.4,2647.1,3.2078]
[1729401489404,4.15198,2648.0,2647.1,3.2078]
[1729401489597,0.37772,2647.6,2647.2,0.37776]
[1729401489802,0.37773,2647.5,2647.3,1.229]
[1729401490101,1.2308,2647.9,2647.3,1.229]
[1729401490301,0.37772,2647.6,2647.3,1.229]
[1729401491008,1.60848,2647.9,2647.5,0.37772]
[1729401491200,1.2308,2647.9,2647.5,0.37772]
[1729401491401,0.37767,2648.0,2647.6,0.78051]
[1729401491608,0.37767,2648.0,2647.7,0.3917]
[1729401491807,0.37767,2648.0,2647.7,0.8001]
[1729401493313,0.37767,2648.0,2647.7,1.17779]
[1729401495105,0.37767,2647.9,2647.7,1.17779]
[1729401495406,0.37767,2648.0,2647.8,0.37769]
[1729401495807,0.37767,2648.0,2647.9,0.3888]
[1729401498710,0.37767,2648.0,2647.9,0.76647]
[1729401499017,1.2271,2648.2,2647.9,0.76647]
[1729401499218,0.37765,2648.1,2647.9,0.76647]
[1729401499407,1.2271,2648.2,2647.9,0.3888]
[1729401499408,0.37766,2648.0,2647.9,0.3888]
[1729401509023,0.37766,2648.0,2647.6,0.872]
[1729401509024,0.3777,2647.7,2647.6,0.872]
[1729401509323,0.37771,2647.6,2647.5,0.388]
[1729401510218,0.37774,2647.4,2647.3,0.8395]
[1729401510421,0.37774,2647.4,2647.3,0.388]
[1729401510722,0.37777,2647.3,2647.1,3.2078]
[1729401510915,0.8085,2647.4,2647.1,3.6258]
[1729401511413,0.37776,2647.3,2647.1,3.6258]
[1729401512217,0.37777,2647.2,2647.1,3.6258]
[1729401513216,0.8085,2647.4,2647.1,3.6258]
[1729401513418,0.37777,2647.3,2647.1,3.6258]
[1729401514419,0.8085,2647.4,2647.1,3.6258]
[1729401514628,0.37777,2647.3,2647.1,3.6258]
[1729401515025,0.37777,2647.3,2647.1,0.418]
[1729401517132,0.37776,2647.3,2647.1,0.418]
[1729401518131,0.8085,2647.4,2647.1,0.418]
[1729401518330,0.79337,2647.2,2647.1,0.418]
[1729401521728,0.4156,2647.2,2646.9,1.5730337]
[1729401522033,0.3778,2647.1,2646.9,1.5730337]
[1729401522626,0.37779,2647.1,2646.9,1.5730337]
[1729401529032,0.3778,2647.1,2646.9,1.5730337]
[1729401531631,0.4156,2647.2,2646.9,1.5730337]
[1729401532032,0.4156,2647.2,2646.9,0.4225]
[1729401532033,0.3778,2647.0,2646.9,0.4225]
[1729401543042,0.4156,2647.2,2646.6,3.58565]
[1729401543043,1.36004,2647.2,2646.6,3.2078]
[1729401543243,1.36004,2647.2,2646.6,3.6255]
[1729401543244,0.37784,2646.8,2646.6,3.6255]
[1729401543638,0.79194,2646.8,2646.6,3.6255]
[1729401544553,0.37784,2646.7,2646.6,3.6255]
[1729401544750,0.79194,2646.8,2646.6,3.6255]
[1729401545250,0.79194,2646.8,2646.6,0.4177]
[1729401548142,0.4141,2646.8,2646.6,0.4177]
[1729401548751,0.79194,2646.8,2646.6,0.4177]
[1729401549439,0.4141,2646.8,2646.6,0.4177]
[1729401549642,0.79194,2646.8,2646.6,0.4177]
[1729401551548,0.4141,2646.8,2646.6,0.4177]
[1729401551747,0.79193,2646.8,2646.6,0.4177]
[1729401553641,0.37786,2646.6,2646.5,0.32184979]
[1729401553845,0.37787,2646.5,2646.4,3.2078]
[1729401554160,1.18917,2646.5,2646.4,3.2078]
[1729401555749,0.8113,2646.5,2646.4,3.2078]
[1729401555951,1.18917,2646.5,2646.4,3.2078]
[1729401556657,1.18917,2646.5,2646.4,3.5976]
[1729401558646,0.8113,2646.5,2646.4,3.5976]
[1729401559158,1.18917,2646.5,2646.4,3.5976]
[1729401559349,0.8113,2646.5,2646.4,3.5976]
[1729401559556,1.18917,2646.5,2646.4,3.5976]
[1729401560958,1.18917,2646.5,2646.4,0.3898]
[1729401561853,1.18917,2646.5,2646.4,0.76769]
[1729401562048,0.8113,2646.5,2646.4,0.76769]
[1729401562857,1.18917,2646.5,2646.4,0.76769]
[1729401563757,1.18917,2646.5,2646.4,0.3898]
[1729401564461,1.18917,2646.5,2646.4,1.1983]
[1729401564663,0.8113,2646.5,2646.4,1.1983]
[1729401564850,1.18917,2646.5,2646.4,1.1983]
[1729401565363,1.18917,2646.5,2646.4,1.57619]
[1729401565746,1.18917,2646.5,2646.4,1.1983]
[1729401565952,0.8113,2646.5,2646.4,1.57619]
[1729401566465,1.18917,2646.5,2646.4,1.57619]
[1729401566752,1.18917,2646.5,2646.4,1.1983]
[1729401566958,1.18917,2646.5,2646.4,1.57619]
[1729401568351,0.8113,2646.5,2646.4,1.57619]
[1729401569955,0.37785,2646.7,2646.4,1.1983]
[1729401570153,0.77475,2646.7,2646.4,1.1983]
[1729401570355,0.77475,2646.7,2646.5,0.37786]
[1729401570763,0.37786,2646.6,2646.5,0.37786]
[1729401570961,0.77475,2646.7,2646.5,0.37786]
[1729401571865,0.8118,2646.7,2646.5,0.37787]
[1729401572069,1.18965,2646.7,2646.5,0.37786]
[1729401572763,1.18965,2646.7,2646.4,1.1983]
[1729401572764,0.8118,2646.7,2646.4,1.1983]
[1729401572954,0.37786,2646.6,2646.4,1.57617]
[1729401573152,0.8118,2646.7,2646.5,0.37787]
[1729401573666,0.37786,2646.6,2646.5,0.37787]
[1729401573856,0.37786,2646.6,2646.4,1.57617]
[1729401574051,0.37786,2646.6,2646.4,1.1983]
[1729401574264,0.8118,2646.7,2646.5,0.37787]
[1729401574468,1.18966,2646.7,2646.5,0.37787]
[1729401574965,0.37786,2646.6,2646.5,0.37787]
[1729401575265,1.18965,2646.7,2646.5,0.37787]
[1729401575462,0.8118,2646.7,2646.4,1.1983]
[1729401575658,0.8118,2646.7,2646.5,0.37787]
[1729401575865,0.37786,2646.6,2646.4,1.1983]
[1729401576063,0.37786,2646.6,2646.5,0.37787]
[1729401576366,0.8118,2646.7,2646.5,0.37787]
[1729401576761,0.37786,2646.6,2646.5,0.37787]
[1729401577464,0.8118,2646.7,2646.5,0.37787]
[1729401577663,0.37786,2646.6,2646.5,0.37787]
[1729401578060,0.37786,2646.6,2646.5,0.37786]
[1729401578968,0.37786,2646.6,2646.4,1.1983]
[1729401579154,0.37786,2646.6,2646.4,1.57617]
[1729401579358,1.18965,2646.7,2646.5,0.37786]
[1729401579562,0.8118,2646.7,2646.5,0.37786]
[1729401579758,1.18965,2646.7,2646.5,0.37786]
[1729401580562,0.8118,2646.7,2646.4,1.1983]
[1729401580756,0.8118,2646.7,2646.4,1.57617]
[1729401581154,0.8118,2646.7,2646.5,0.37787]
[1729401581353,0.8118,2646.7,2646.4,1.1983]
[1729401581354,0.37786,2646.6,2646.4,1.1983]
[1729401581568,0.37786,2646.6,2646.4,1.57618]
[1729401582355,0.37786,2646.6,2646.4,1.1983]
[1729401582769,0.37786,2646.6,2646.4,1.57618]
[1729401583369,0.8118,2646.7,2646.4,1.1983]
[1729401583567,1.18965,2646.7,2646.5,0.37787]
[1729401583960,0.37786,2646.6,2646.5,0.37787]
[1729401584261,0.8118,2646.7,2646.5,0.37787]
[1729401584457,1.18965,2646.7,2646.5,0.37787]
[1729401585066,0.37786,2646.6,2646.5,0.37787]
[1729401585268,1.18965,2646.7,2646.4,1.1983]
[1729401585463,1.18965,2646.7,2646.5,0.37787]
[1729401585667,1.18965,2646.7,2646.4,1.1983]
[1729401585969,1.18965,2646.7,2646.5,0.37787]
[1729401586570,0.37786,2646.6,2646.5,0.37787]
[1729401586873,0.8118,2646.7,2646.5,0.37787]
[1729401587066,1.18965,2646.7,2646.5,0.37787]
[1729401587466,0.37787,2646.6,2646.4,1.1983]
[1729401587772,0.37787,2646.6,2646.5,0.37787]
[1729401588068,0.8118,2646.7,2646.4,1.1983]
[1729401588265,0.37787,2646.6,2646.4,1.57618]
[1729401588573,0.37787,2646.6,2646.5,0.37787]
[1729401588771,0.37787,2646.6,2646.4,1.17238]
[1729401591174,0.37789,2646.4,2646.2,3.2078]
[1729401591473,0.8083,2646.3,2646.2,3.5857]
[1729401591675,1.2089,2646.3,2646.2,3.5857]
[1729401591863,1.2089,2646.3,2646.2,0.3779]
[1729401592276,1.2089,2646.3,2646.1,0.8138]
[1729401592472,1.5868,2646.3,2646.1,1.19172]
[1729401592672,1.2089,2646.3,2646.1,1.19172]
[1729401594370,1.5868,2646.3,2646.1,0.8138]
[1729401594576,1.2089,2646.3,2646.2,0.37791]
[1729401594779,1.2089,2646.3,2646.1,1.19172]
[1729401598968,1.2089,2646.3,2646.1,0.8138]
[1729401599177,0.37791,2646.2,2646.1,0.413]
[1729401599368,1.2089,2646.3,2645.9,5.47136361]
[1729401599369,1.2089,2646.3,2645.9,4.60072336]
[1729401599569,0.37793,2646.2,2646.0,0.4187]
[1729401599983,0.37791,2646.2,2646.0,0.4187]
[1729401600170,1.2089,2646.3,2646.0,0.4187]
[1729401600377,0.37792,2646.2,2646.0,0.4187]
[1729401601484,1.2089,2646.3,2646.0,0.4187]
[1729401601672,0.37793,2646.2,2646.0,0.4187]
[1729401602278,1.2089,2646.3,2646.0,0.4187]
[1729401602473,0.37794,2646.0,2645.9,3.2078]
[1729401602877,1.2089,2646.3,2645.9,3.2078]
[1729401603079,0.37794,2646.0,2645.9,3.2078]
[1729401603778,1.2089,2646.3,2645.9,3.2078]
[1729401603981,0.37794,2646.1,2645.9,3.2078]
[1729401604184,1.2089,2646.3,2645.9,3.2078]
[1729401604376,0.78124,2646.0,2645.9,3.2078]
[1729401605479,0.4033,2646.0,2645.9,3.2078]
[1729401606084,0.78124,2646.0,2645.9,3.2078]
[1729401607384,0.4033,2646.0,2645.9,3.58576]
[1729401607583,0.37792,2646.2,2645.9,3.58576]
[1729401607781,0.77182,2646.2,2645.9,3.58576]
[1729401607974,0.77182,2646.2,2646.0,0.4214]
[1729401608381,0.77182,2646.2,2646.1,0.4088]
[1729401614680,0.77182,2646.2,2646.1,0.78673]
[1729401615286,0.77182,2646.2,2646.1,0.4088]
[1729401616680,0.77182,2646.2,2646.1,0.78673]
[1729401617886,0.77182,2646.2,2646.1,0.4088]
[1729401619380,0.77182,2646.2,2646.1,0.78673]
[1729401619578,0.77182,2646.2,2646.1,0.4088]
[1729401621189,0.77182,2646.2,2646.1,0.78673]
[1729401621689,0.77182,2646.2,2646.1,0.4088]
[1729401622280,0.77182,2646.2,2646.1,0.78673]
[1729401622887,2.97120405,2646.3,2646.1,0.4088]
[1729401623084,2.97120405,2646.4,2646.1,0.4088]
[1729401623284,2.97120405,2646.4,2646.3,0.3779]
[1729401623485,3.37570405,2646.5,2646.4,0.37789]
[1729401623679,3.37570405,2646.5,2646.2,0.3866]
[1729401623680,3.75358405,2646.5,2646.3,0.37789]
[1729401623884,0.78238,2646.5,2646.3,0.37789]
[1729401624188,0.78238,2646.5,2646.4,0.4253]
[1729401624483,3.75358405,2646.5,2646.4,0.4253]
[1729401624789,2.97120405,2646.5,2646.4,0.80319]
[1729401625980,3.34907405,2646.5,2646.4,0.4253]
[1729401628783,3.34907405,2646.5,2646.4,0.80319]
[1729401629286,3.34907405,2646.5,2646.4,0.4253]
[1729401629683,0.37787,2646.5,2646.4,0.4253]
[1729401630494,0.37787,2646.5,2646.4,0.80319]
[1729401630991,0.37787,2646.5,2646.4,0.4253]
[1729401632291,6.57710405,2646.7,2646.4,1.23139]
[1729401632493,0.37787,2646.6,2646.4,1.23139]
[1729401632689,6.57710405,2646.7,2646.4,0.8535]
[1729401632885,6.95495405,2646.7,2646.4,0.8535]
[1729401633091,6.95495405,2646.7,2646.5,0.37786]
[1729401633287,3.6059,2646.7,2646.4,0.8535]
[1729401633489,2.47706166,2646.5,2646.4,1.23139]
[1729401634197,3.98374,2646.7,2646.5,0.37786]
[1729401634691,3.98374,2646.7,2646.6,0.37786]
[1729401635291,3.6059,2646.7,2646.6,0.37786]
[1729401635596,3.6059,2646.7,2646.4,0.8535]
[1729401635597,3.98374,2646.7,2646.5,0.37786]
[1729401636189,6.57710405,2646.7,2646.6,0.37786]
[1729401636391,3.6059,2646.7,2646.6,0.37786]
[1729401636593,0.3981,2646.7,2646.6,0.37786]
[1729401636792,4.23614084,2646.7,2646.5,0.37786]
[1729401636996,2.9730325,2646.6,2646.5,0.37786]
[1729401637199,0.37786,2646.6,2646.5,0.37786]
[1729401637586,4.23614084,2646.7,2646.5,0.37786]
[1729401637990,2.97299398,2646.6,2646.5,0.37786]
[1729401639491,3.35085398,2646.6,2646.5,0.37786]
[1729401639688,3.35085398,2646.6,2646.3,0.37789]
[1729401639689,0.37788,2646.5,2646.3,0.37789]
[1729401639891,3.35087398,2646.5,2646.3,0.78819]
[1729401641194,3.35087398,2646.5,2646.3,0.4103]
[1729401641598,2.97299398,2646.5,2646.3,0.4103]
[1729401641801,0.78679,2646.4,2646.3,0.4103]
[1729401642695,0.4089,2646.4,2646.3,0.4103]
[1729401642903,0.78679,2646.4,2646.3,0.4103]
[1729401643901,3.26437174,2646.4,2646.3,0.4103]
[1729401644097,0.78679,2646.4,2646.3,0.4103]
[1729401644296,3.2643774,2646.4,2646.3,0.4103]
[1729401644596,0.78679,2646.4,2646.3,0.4103]
[1729401644791,3.26437195,2646.4,2646.3,0.4103]
[1729401645291,0.78679,2646.4,2646.3,0.4103]
[1729401645693,3.26434198,2646.4,2646.3,0.4103]
[1729401646496,0.78679,2646.4,2646.3,0.4103]
[1729401646696,3.26434732,2646.4,2646.3,0.4103]
[1729401646898,3.26435626,2646.4,2646.3,0.4103]
[1729401648304,0.78679,2646.4,2646.3,0.4103]
[1729401648507,3.2643242,2646.4,2646.3,0.4103]
[1729401648891,0.78679,2646.4,2646.3,0.4103]
[1729401649807,3.26437769,2646.4,2646.3,0.4103]
[1729401651810,0.78679,2646.4,2646.3,0.4103]
[1729401653509,0.78679,2646.4,2646.1,0.37792]
[1729401653510,0.4089,2646.4,2646.1,0.37792]
[1729401653713,2.47792649,2646.2,2646.1,0.37792]
[1729401653905,0.37792,2646.2,2646.0,3.58574]
[1729401654100,1.2749,2646.1,2646.0,3.2078]
[1729401658715,11.61282398,2646.1,2645.5,0.37801]
[1729401658915,11.61282398,2646.1,2645.7,0.37798]
[1729401658916,2.47863781,2645.9,2645.7,0.37798]
[1729401659116,2.47863781,2645.8,2645.7,0.37798]
[1729401659311,2.88533781,2645.8,2645.7,0.37798]
[1729401659513,2.88533781,2645.8,2645.7,0.78508]
[1729401660012,0.4067,2645.8,2645.7,0.78508]
[1729401660217,0.4067,2645.8,2645.7,0.4071]
[1729401660414,2.88533781,2645.8,2645.7,0.4071]
[1729401661614,3.26330781,2645.8,2645.7,0.4071]
[1729401662817,0.37799,2645.7,2645.4,3.2078]
[1729401663124,1.187,2645.7,2645.5,0.4254]
[1729401666423,0.809,2645.7,2645.5,0.4254]
[1729401666623,0.809,2645.7,2645.5,0.80341]
[1729401667118,0.809,2645.7,2645.5,0.4254]
[1729401667313,0.809,2645.7,2645.5,0.80341]
[1729401667519,0.809,2645.7,2645.5,0.4254]
[1729401667718,0.378,2645.6,2645.5,0.4254]
[1729401668327,1.187,2645.7,2645.5,0.4254]
[1729401668627,0.378,2645.6,2645.5,0.4254]
[1729401669132,1.18699,2645.7,2645.5,0.4254]
[1729401674127,3.66562781,2645.7,2645.5,0.4254]
[1729401674328,1.18699,2645.7,2645.5,0.4254]
[1729401677218,3.66562781,2645.7,2645.5,0.4254]
[1729401677423,1.18699,2645.7,2645.5,0.4254]
[1729401679532,3.66562781,2645.7,2645.5,0.4254]
[1729401680030,3.28763781,2645.7,2645.5,0.4254]
[1729401680230,0.809,2645.7,2645.5,0.4254]
[1729401680427,1.18699,2645.7,2645.5,0.4254]
[1729401681537,0.809,2645.7,2645.5,0.4254]
[1729401681729,0.809,2645.7,2645.5,0.80341]
[1729401682032,0.4067,2645.8,2645.6,0.378]
[1729401682636,0.78467,2645.8,2645.5,0.80341]
[1729401682832,3.29983781,2646.0,2645.5,0.4254]
[1729401683044,6.06436781,2646.1,2645.8,0.37796]
[1729401683235,6.06436781,2646.1,2645.9,1.2147]
[1729401684235,5.68643781,2646.1,2645.9,1.2147]
[1729401684437,0.37794,2646.0,2645.9,1.2147]
[1729401689151,2.85657781,2646.0,2645.9,1.2147]
[1729401692545,2.85657781,2646.0,2645.9,0.3964]
[1729401692852,0.37797,2645.9,2645.7,0.37798]
[1729401693147,0.37799,2645.7,2645.6,1.6426]
[1729401693351,0.37799,2645.7,2645.6,1.2646]
[1729401693849,0.378,2645.6,2645.5,3.2078]
[1729401694035,0.7973,2645.6,2645.5,3.2078]
[1729401695343,3.27593781,2645.6,2645.5,3.2078]
[1729401695647,0.7973,2645.6,2645.5,3.2078]
[1729401696051,3.27593781,2645.6,2645.5,3.20627501]
[1729401696644,0.7973,2645.6,2645.5,3.20627501]
[1729401698854,0.37803,2645.4,2645.3,4.4171]
[1729401699057,2.85528097,2645.4,2645.3,4.4171]
[1729401700452,0.37803,2645.4,2645.3,4.4171]
[1729401704449,2.85644113,2645.4,2645.3,4.4171]
[1729401704655,0.37803,2645.4,2645.3,4.4171]
[1729401704867,0.37803,2645.4,2645.3,1.2093]
[1729401705160,0.37803,2645.4,2645.3,4.4171]
[1729401705857,2.85644113,2645.4,2645.3,4.4171]
[1729401710454,2.85644113,2645.4,2645.3,3.5982]
[1729401710656,0.37803,2645.4,2645.3,3.5982]
[1729401710858,2.85644113,2645.4,2645.3,3.5982]
[1729401711060,3.64164113,2645.4,2645.3,3.5982]
[1729401711355,1.16323,2645.4,2645.3,3.5982]
[1729401712764,1.16323,2645.4,2645.3,0.3904]
[1729401720064,1.16323,2645.4,2645.1,3.2078]
[1729401720065,0.37806,2645.2,2645.1,3.2078]
[1729401720359,0.37806,2645.2,2645.1,3.6092]
[1729401722362,0.37806,2645.2,2644.8,0.31686912]
[1729401722363,0.3895,2645.3,2644.8,0.31686912]
[1729401722564,0.3895,2645.3,2644.2,0.99212336]
[1729401722565,3.2078,2644.9,2644.2,0.99212336]
[1729401722754,0.37816,2644.5,2644.0,0.99212336]
[1729401722960,0.37817,2644.4,2644.2,0.4162]
[1729401723162,0.37817,2644.4,2644.3,0.4081]
[1729401723865,2.85593042,2644.5,2644.3,0.4081]
[1729401724569,0.37817,2644.5,2644.3,0.4081]
[1729401725766,0.37816,2644.5,2644.3,0.4081]
[1729401725956,3.2078,2644.6,2644.3,0.4081]
[1729401726167,3.58595,2644.6,2644.3,0.4081]
[1729401726478,3.2078,2644.6,2644.3,0.4081]
[1729401726666,0.37816,2644.5,2644.3,0.4081]
[1729401732567,0.37816,2644.5,2644.3,0.78629]
[1729401733069,0.37816,2644.5,2644.3,0.4081]
[1729401736273,0.37816,2644.5,2644.3,0.78628]
[1729401738072,0.37816,2644.5,2644.3,0.4081]
[1729401738271,3.2078,2644.7,2644.3,0.4081]
[1729401738479,0.37817,2644.5,2644.3,0.78628]
[1729401738769,0.37817,2644.5,2644.3,0.4081]
[1729401738966,0.37816,2644.5,2644.3,0.78628]
[1729401740077,0.37817,2644.4,2644.3,0.4081]
[1729401741379,0.37817,2644.5,2644.3,0.78629]
[1729401741975,0.37817,2644.4,2644.3,0.78629]
[1729401742377,0.37816,2644.5,2644.3,0.78629]
[1729401742970,0.37817,2644.4,2644.3,0.78629]
[1729401743368,0.37816,2644.5,2644.3,0.78628]
[1729401743767,5.68556042,2644.7,2644.3,0.4081]
[1729401743972,5.68556042,2644.7,2644.3,0.78628]
[1729401743973,0.37817,2644.5,2644.3,0.78628]
[1729401744473,0.37816,2644.5,2644.3,0.78628]
[1729401745179,2.47776042,2644.6,2644.3,0.4081]
[1729401745481,0.37817,2644.5,2644.3,0.78629]
[1729401745677,5.68556042,2644.7,2644.3,0.4081]
[1729401745879,2.47776042,2644.6,2644.3,0.4081]
[1729401746181,0.37815,2644.6,2644.4,0.37817]
[1729401746473,0.37815,2644.6,2644.5,0.4256]
[1729401746683,0.37815,2644.6,2644.5,0.8241]
[1729401750981,0.37815,2644.6,2644.5,1.20226]
[1729401751186,0.37815,2644.6,2644.5,0.8241]
[1729401753278,0.37815,2644.6,2644.5,0.3985]
[1729401753587,0.78645,2644.6,2644.5,0.3985]
[1729401753787,1.19355,2644.6,2644.5,0.3985]
[1729401761389,3.67131042,2644.6,2644.5,0.3985]
[1729401762888,1.19355,2644.6,2644.5,0.3985]
[1729401763392,1.19355,2644.6,2644.3,0.4081]
[1729401763393,0.37817,2644.4,2644.3,0.4081]
[1729401764487,2.85593042,2644.4,2644.3,0.4081]
[1729401765291,0.37817,2644.4,2644.3,0.4081]
[1729401768500,3.35116398,2644.4,2644.3,0.4081]
[1729401771107,0.37817,2644.4,2644.3,0.4081]
[1729401771309,3.3558756,2644.4,2644.3,0.4081]